[Event "Romanian Team Rapid Women 2022"]
[Site "Sebes"]
[Date "2022.12.03"]
[Round "1.5"]
[White "Cosma, Elena-Luminita"]
[Black "Ionescu, Irina"]
[Result "1/2-1/2"]
[ECO "D26"]
[WhiteElo "2244"]
[BlackElo "2119"]
[Annotator "TA"]
[PlyCount "87"]
[EventDate "2022.12.03"]
[EventType "rapid"]
[EventCountry "ROU"]
[SourceTitle "playchess.com"]
[Source "ChessBase"]
[SourceQuality "1"]
[TimeControl "900+10"]

{[%evp 10,87,31,22,36,15,17,0,0,0,0,0,6,1,34,7,8,7,8,20,18,35,27,0,60,21,185,130,131,122,244,246,232,162,153,157,153,151,219,43,75,75,84,20,60,58,58,54,58,50,183,196,198,204,204,193,171,93,89,21,21,21,21,21,21,11,11,11,11,11,11,11,23,23,23,23,23,23,23,23]} 1. d4 {[%emt 0:00:02]} d5 {[%emt 0:00:06]} 2. c4 {[%emt 0:00:06]} dxc4 {[%emt 0:00:13]} 3. Nf3 {[%emt 0:00:01]} Nf6 {[%emt 0:00:03]} 4. e3 {[%emt 0:00:01]} e6 {[%emt 0:00:02]} 5. Bxc4 {[%emt 0:00:03]} a6 {[%emt 0:00:02]} 6. O-O {[%emt 0:00:03]} Nbd7 {[%emt 0:00:10] D26: Queen's Gambit Accepted: 4 e3 e6 5 Bxc5 c5 sidelines.} 7. Be2 {[%emt 0:00:27]} c5 {[%emt 0:00:14]} 8. dxc5 {[%emt 0:00:24]} Bxc5 {[%emt 0:00:10] The position is equal.} 9. a3 {[%emt 0:00:05] [#]} O-O $146 {[%emt 0:00:14]} ({Predecessor:} 9... b5 10. b4 Be7 11. Bb2 Bb7 12. Nbd2 Nb6 13. Rc1 O-O 14. Ne5 Bd6 15. Ndf3 Bd5 {½-½ (15) Maisuradze,N (2308)-David,A (2602) Orsay 2009}) 10. b4 {[%emt 0:00:01]} Be7 {[%emt 0:00:04]} 11. Bb2 {[%emt 0:00:02]} a5 {[%emt 0:00:41]} 12. bxa5 {[%emt 0:01:07]} Qxa5 {[%emt 0:01:30]} 13. Nbd2 {[%emt 0:00:03]} Rd8 {[%emt 0:00:50]} 14. Nc4 {[%emt 0:00:10]} Qa4 {[%emt 0:01:10]} 15. Qxa4 {[%emt 0:03:20]} Rxa4 {[%emt 0:00:03]} 16. Rfd1 {[%emt 0:00:16]} Ne4 {[%emt 0:02:37]} (16... Nd5 $11) 17. Nfe5 {[%emt 0:05:12][%cal Bf3e5,Be5d3,Bd3f4][%mdl 32]} Bc5 $2 {[%emt 0:04:08]} (17... Ra6 $11) 18. Rac1 {[%emt 0:01:56]} (18. Nxd7 $18 Rxd7 19. Rac1) 18... f6 $16 {[%emt 0:01:23]} 19. Nd3 {[%emt 0:00:36] Black must now prevent Nxc5.} Bf8 {[%emt 0:00:18] [#]} (19... Be7 $16) 20. Nf4 $1 $18 {[%emt 0:00:38]} Re8 {[%emt 0:00:46]} 21. f3 {[%emt 0:00:54]} Nec5 {[%emt 0:00:16]} 22. Nd6 {[%emt 0:00:10] Against b6} Bxd6 {[%emt 0:00:30]} 23. Rxd6 {[%emt 0:00:02] Hoping for Bb5.} Kf7 {[%emt 0:00:50]} (23... Ra7 $16 {keeps fighting.} 24. Bd4 b6 25. Bxc5 bxc5 26. Nxe6 Kf7) 24. Rcd1 $2 {[%emt 0:00:20]} (24. Bb5 $18) 24... Ra8 {[%emt 0:00:38]} 25. Bb5 {[%emt 0:00:05]} Re7 {[%emt 0:00:01]} 26. Bc4 {[%emt 0:00:28] White is much more active. This pair of bishops is nice.} ({White should try} 26. Rc1 $16) 26... Ne5 {[%emt 0:00:03] Against Nd3} 27. Bxe5 {[%emt 0:00:08]} fxe5 {[%emt 0:00:02]} 28. Nd3 {[%emt 0:00:11]} Nxd3 {[%emt 0:00:27]} 29. R1xd3 {[%emt 0:00:01]} Ra4 {[%emt 0:00:18]} ({Better is} 29... Ra5 $14) 30. Bb5 {[%emt 0:00:11]} Ra5 {[%emt 0:00:19]} 31. a4 {[%emt 0:00:01] Threatens to win with Rc3.} Rc7 {[%emt 0:00:03] Against Rc3} 32. e4 {[%emt 0:00:08]} Ke7 {[%emt 0:00:08]} 33. Rd8 {[%emt 0:00:04]} (33. Kf2 $18) 33... b6 $16 {[%emt 0:00:11] [#]} 34. Kf2 {[%emt 0:00:28]} (34. Rg8 $1 $16 {[%cal Rg8g7]} Kf6 35. Rd6) 34... Ba6 $11 {[%emt 0:00:14]} 35. R3d7+ {[%emt 0:00:11]} (35. R8d7+ {simplifies} Rxd7 36. Rxd7+ Kf6 37. Bc6) 35... Rxd7 {[%emt 0:00:07]} 36. Rxd7+ {[%emt 0:00:10]} Kf6 {[%emt 0:00:06]} 37. Bxa6 {[%emt 0:01:23]} Rxa6 {[%emt 0:00:02][%mdl 4096] Endgame KR-KR} 38. Rb7 {[%emt 0:00:05]} Rxa4 {[%emt 0:00:08]} 39. Rxb6 {[%emt 0:00:01]} Ra2+ {[%emt 0:00:08]} 40. Kg3 {[%emt 0:00:01]} g6 {[%emt 0:00:10]} 41. h4 {[%emt 0:00:04] White has an edge.} h6 {[%emt 0:00:30]} 42. Rb7 {[%emt 0:00:07]} Rc2 {[%emt 0:00:06]} 43. Kh3 {[%emt 0:00:34]} Rc3 {[%emt 0:00:06]} 44. Ra7 {[%emt 0:00:33] Weighted Error Value: White=0.21 (precise) /Black=0.23 (precise)} 1/2-1/2

[Event "Romanian Team Rapid Women 2022"]
[Site "Sebes"]
[Date "2022.12.03"]
[Round "1.6"]
[White "Bucur, Denisa-Andreea"]
[Black "Hoanca, Alexia-Ioana"]
[Result "0-1"]
[ECO "D02"]
[WhiteElo "1953"]
[BlackElo "1644"]
[Annotator "TA"]
[PlyCount "50"]
[EventDate "2022.12.03"]
[EventType "rapid"]
[EventCountry "ROU"]
[SourceTitle "playchess.com"]
[Source "ChessBase"]
[SourceQuality "1"]
[TimeControl "900+10"]

{[%evp 15,50,0,0,0,0,-6,0,-6,12,-57,-38,-54,-14,-148,-158,-159,-148,-366,-366,-438,-419,-565,-578,-799,-508,-825,-785,-999,-992,-979,-970,-1212,-844,-5231,-4917,-29997,-29998]} 1. d4 {[%emt 0:00:07]} Nf6 {[%emt 0:00:03]} 2. Nf3 {[%emt 0:00:02]} e6 {[%emt 0:00:02]} 3. Bf4 {[%emt 0:00:13]} c5 {[%emt 0:00:22]} 4. c3 {[%emt 0:00:02]} d5 {[%emt 0:03:28]} 5. Nbd2 {[%emt 0:01:00]} Bd6 {[%emt 0:00:12]} 6. Bg3 {[%emt 0:00:44]} Nc6 {[%emt 0:00:34]} 7. e3 {[%emt 0:00:53]} O-O {[%emt 0:00:15]} 8. Bd3 {[%emt 0:00:27]} b6 {[%emt 0:00:07]} 9. Ne5 {[%emt 0:01:54] D02: 1 d4 d5 2 Nf3 sidelines, including 2...Nf6 3 g3 and 2...Nf6 3 Bf4.} Qc7 {[%emt 0:02:33][%cal Rc6e5]} 10. f4 {[%emt 0:01:07]} Bb7 {[%emt 0:00:48] The main line 10...Bb7 scores better than 10...Ne7.} 11. Bh4 {[%emt 0:00:43] The position is equal.} Be7 {[%emt 0:03:05][%cal Of6e4]} 12. g4 {[%emt 0:03:23]} (12. O-O $11) 12... Ne4 $15 {[%emt 0:00:42]} 13. Bxe7 {[%emt 0:01:00]} Qxe7 {[%emt 0:00:16] [#]} (13... Nxe7 {simplifies} 14. Nef3 Nc8 15. Bc2 Ncd6) 14. Nxe4 $146 {[%emt 0:01:39]} (14. O-O $11 {keeps the balance.}) ({Predecessor:} 14. h4 Nxe5 15. fxe5 f6 16. Nf3 fxe5 17. Bxe4 dxe4 18. Nxe5 cxd4 19. exd4 Qf6 20. Qe2 {1-0 (41) Gierth,H (2265)-Duessel,U (2140) Germany 2002}) 14... dxe4 $17 {[%emt 0:00:06]} 15. Be2 {[%emt 0:01:02]} cxd4 {[%emt 0:00:45]} 16. Nxc6 $2 {[%emt 0:00:41]} (16. cxd4 $17 {is the only way for White.} Nxe5 17. fxe5) 16... Qh4+ $19 {[%emt 0:00:05][%mdl 64] [#] Zwischenzug} ({And not} 16... Bxc6 17. cxd4 Qh4+ 18. Kd2 $11) 17. Kf1 {[%emt 0:00:22]} Qh3+ {[%emt 0:00:31]} ({Inferior is} 17... Bxc6 18. cxd4 g5 19. f5 $17) (17... dxe3 $2 18. Kg2 Bxc6 19. Qe1 $19) 18. Kg1 {[%emt 0:00:53]} Qxe3+ {[%emt 0:00:08]} (18... Bxc6 $2 {is the wrong capture.} 19. exd4 Qe3+ 20. Kg2 $19) 19. Kf1 {[%emt 0:00:24]} Qxf4+ {[%emt 0:00:04]} 20. Ke1 {[%emt 0:00:10]} (20. Kg2 $142 Bxc6 21. Rf1) 20... Bxc6 {[%emt 0:00:10]} 21. cxd4 {[%emt 0:01:09]} e3 {[%emt 0:00:16][%csl Ge3][%cal Rf4f2]} 22. Rf1 {[%emt 0:00:09] Prevents Qf2+.} Qg5 {[%emt 0:00:13]} 23. Qd3 {[%emt 0:00:28]} Rac8 {[%emt 0:00:31][%cal Oc6e4] ...Be4! is the strong threat.} 24. h3 {[%emt 0:00:23] [#]} Be4 $1 {[%emt 0:00:33][%mdl 512] ( -> ...Qa5+)} 25. Qxe4 {[%emt 0:00:09]} (25. a3 Qh4+) 25... Qa5+ {[%emt 0:00:02] White got outplayed after the opening.   Weighted Error Value: White=1.59/Black=0.79} 0-1

[Event "Romanian Team Rapid Women 2022"]
[Site "Sebes"]
[Date "2022.12.03"]
[Round "2.1"]
[White "Bulmaga, Irina"]
[Black "Sariteanu, Sabina"]
[Result "1-0"]
[ECO "B82"]
[WhiteElo "2426"]
[BlackElo "1752"]
[Annotator "TA"]
[PlyCount "95"]
[EventDate "2022.12.03"]
[EventType "rapid"]
[EventCountry "ROU"]
[SourceTitle "playchess.com"]
[Source "ChessBase"]
[SourceQuality "1"]
[TimeControl "900+10"]

{[%evp 11,95,0,19,-28,23,22,33,18,36,29,14,16,26,14,32,0,32,7,84,56,85,-52,-70,-60,0,-8,-13,-35,-34,-24,-4,-26,0,-24,0,0,0,-19,-18,-222,-209,-247,0,0,0,0,0,0,0,0,0,0,0,6,1158,111,116,8,86,8,1127,1039,1022,1000,1010,517,516,516,501,501,610,595,595,577,595,467,595,595,588,588,588,500,588,562,615,600]} 1. e4 {[%emt 0:00:03]} c5 {[%emt 0:00:02]} 2. Nf3 {[%emt 0:00:03]} d6 {[%emt 0:00:01]} 3. d4 {[%emt 0:00:04]} cxd4 {[%emt 0:00:02]} 4. Nxd4 {[%emt 0:00:03]} Nf6 {[%emt 0:00:01]} 5. Nc3 {[%emt 0:00:02]} a6 {[%emt 0:00:01]} 6. f4 {[%emt 0:00:02]} e6 {[%emt 0:00:03]} (6... e5 $5 {[%cal Re5d4]} 7. Nf3 Nbd7 $11) 7. g4 {[%emt 0:00:14] B82: Sicilian Scheveningen: 6 f4.} (7. g3 $142) 7... h6 {[%emt 0:00:20] [#]} ({Black should try} 7... e5 $1 8. Nf5 Nc6) 8. g5 $146 {[%emt 0:00:58]} ({Predecessor:} 8. Bg2 Nc6 9. Nb3 d5 10. e5 Nd7 11. Be3 g5 12. Qe2 gxf4 13. Bxf4 Bg7 14. O-O-O Ndxe5 {0-1 (43) Popov,I (2594)-Gabrielian,A (2494) Moscow 2008}) 8... hxg5 {[%emt 0:00:05]} 9. fxg5 {[%emt 0:00:01] White is slightly better.} Nfd7 {[%emt 0:00:19]} 10. Be3 {[%emt 0:00:05]} Ne5 {[%emt 0:00:47]} 11. Qe2 {[%emt 0:00:47]} b5 {[%emt 0:00:11]} 12. a3 {[%emt 0:00:25]} Bb7 {[%emt 0:00:06]} 13. O-O-O {[%emt 0:00:21]} Nbd7 {[%emt 0:00:11]} 14. h4 {[%emt 0:00:31]} Nc5 {[%emt 0:00:13]} (14... Rc8 $11 {remains equal.}) 15. Bg2 {[%emt 0:00:54][%cal Od4b5]} Qa5 {[%emt 0:00:35]} 16. Nb3 {[%emt 0:00:56] Prevents b4.} (16. g6 $16) 16... Nxb3+ $15 {[%emt 0:00:32]} 17. cxb3 {[%emt 0:00:02]} Rc8 {[%emt 0:00:47]} (17... b4 $1 $15 18. axb4 Qxb4) 18. Kb1 $11 {[%emt 0:00:13]} b4 {[%emt 0:00:02]} 19. axb4 {[%emt 0:00:14]} Qxb4 {[%emt 0:00:02]} 20. Qc2 {[%emt 0:00:10]} Be7 {[%emt 0:04:07]} 21. Bd4 {[%emt 0:03:29]} Qa5 {[%emt 0:00:08]} 22. Qd2 {[%emt 0:00:46]} Bc6 {[%emt 0:00:21]} 23. h5 {[%emt 0:01:58][%cal Og5g6]} Rb8 {[%emt 0:00:09] Prevents g6.} 24. g6 {[%emt 0:00:08]} Rxb3 {[%emt 0:00:56] Threatens to win with ...Nc4.} 25. gxf7+ $2 {[%emt 0:00:07]} (25. h6 $1 $11 gxh6 26. gxf7+ Kd7 27. Rxh6 (27. Bxe5 Qxe5 28. Rc1 Rhb8 $17) 27... Rxh6 28. Qxh6) 25... Kxf7 $19 {[%emt 0:00:36] White must now prevent ...Nc4.} (25... Nxf7 26. Qc2 Rb8 27. e5 Bxg2 28. Qxg2 Nxe5 29. Qxg7 $16) 26. h6 {[%emt 0:02:53]} Nc4 $2 {[%emt 0:00:11]} ({Black should play} 26... Bf6 $1 $19 {Hoping for ...Nc4.} 27. Na2 Qxd2 28. Rxd2 Rxh6 29. Rxh6 gxh6) 27. Qf2+ $11 {[%emt 0:00:13]} Bf6 {[%emt 0:00:11]} 28. hxg7 {[%emt 0:01:32]} Rxb2+ {[%emt 0:00:47]} 29. Qxb2 {[%emt 0:00:02] Really sharp!} Rxh1 {[%emt 0:00:08]} 30. g8=Q+ {[%emt 0:00:39][%mdl 64] Decoy} (30. Qf2 $2 Qb4+ 31. Kc1 Qa3+ 32. Kb1 Rxd1+ 33. Nxd1 Qd3+ 34. Kc1 Qxd4 $19) 30... Kxg8 {[%emt 0:00:02]} 31. Qb8+ $40 {[%emt 0:00:06][%mdl 128] White is up to no good.} Kf7 {[%emt 0:01:40]} 32. Rxh1 {[%emt 0:01:10]} Na3+ $2 {[%emt 0:01:27][%mdl 8192] [#]} (32... Bxd4 $11 33. Rh7+ Bg7 34. Qa7+ Ke8 35. Qxg7 (35. Rxg7 Qb4+ 36. Kc2 Qb2+ 37. Kd3 Ne5+ 38. Ke3 Qxc3+ 39. Kf2 Qb2+ 40. Kg1 Nd7 $11) 35... Qb4+ 36. Kc2 Qb2+ 37. Kd3 Ne5+ 38. Ke3 Qxc3+ 39. Kf4 Qd2+ 40. Kg3 Qe3+ 41. Kh2 Qf4+ 42. Kg1 (42. Kh1 Qc1+ 43. Kh2 Qf4+ 44. Kg1 Qc1+ 45. Kh2 Qf4+ $11) 42... Qe3+ 43. Kh2 Qf4+ 44. Kh1 Qc1+ 45. Kh2 Qf4+) 33. Kc1 $2 {[%emt 0:00:16]} (33. Kb2 $1 $18 {is the precise move to win. Rh7+ would kill now.} Nc4+ 34. Kb3) 33... Qg5+ $16 {[%emt 0:00:10]} (33... Bxd4 34. Rh7+ Bg7 35. Qa7+ Ke8 36. Qxg7 Kd8 37. Qe7+ Kc8 38. Rh8+) 34. Kb2 {[%emt 0:00:44]} (34. Kd1 $16 Ba4+ 35. Nxa4 Qg4+ 36. Kc1 Bg5+ 37. Kb2 Qxg2+ 38. Kxa3 Qxh1 39. Nc3 (39. Qxd6 $2 Be7 $19)) 34... Nc4+ {[%emt 0:00:05] [#]} (34... Bxd4 35. Rh7+ (35. Kxa3 Qa5+ 36. Kb2 Qxc3+ 37. Kb1 Qa1+ 38. Kc2 Ba4+) 35... Bg7 36. Qc7+ (36. Kxa3 Qa5+ 37. Kb2 Qxc3+ 38. Kb1 Qe1+ 39. Kc2 Ba4+ 40. Kd3 Qg3+ 41. Ke2 Qxg2+ 42. Ke3 Qg3+ 43. Ke2 Bb5+ 44. Kd1 Qg1+ 45. Kd2 Qf2+ 46. Kc1 Qb2+ 47. Kd1 Ba4+ 48. Ke1 Qxb8 49. Kf2 Qb2+ 50. Kg3 Qe2 51. Kh3 Qxe4 52. Rh5 Qf3+ 53. Kh2 Qxh5+ 54. Kg2 Bd4 55. Kg3 Bc6 56. Kf4 Qh4#) (36. Rxg7+ Kxg7 37. Kxa3 Qc5+ 38. Qb4 Qxb4+ 39. Kxb4 Bb5 $14) 36... Kg8 37. Rxg7+ (37. Kxa3 Qc1+ 38. Ka2 Qc2+ 39. Ka3 Qxc3+ 40. Ka2 Qb2#) 37... Qxg7 38. Qc8+ (38. Qxc6 Nb5 $16) 38... Kf7 39. Qxc6 $16) (34... Qxg2+ $11 {keeps the balance.} 35. Kxa3 Qxh1 36. Qc7+ (36. Qxd6 $2 Be7 $19) 36... Kg6 37. Bxf6 (37. Qxd6 Qa1+ 38. Kb3 Bxd4 $11) 37... Qc1+ 38. Kb3 Bxe4) 35. Kb3 $1 {[%emt 0:00:12][%cal Bb2b3,Bb3c2,Bc2d2][%mdl 32]} Nd2+ $2 {[%emt 0:00:11][%mdl 8192]} (35... Qxg2 $2 36. Rh7+ $18) (35... Na5+ $11 36. Kb4 Bxd4 37. Rh7+ Bg7 38. Qc7+ (38. Qxd6 Qxg2 39. Kxa5 Be8 $14) 38... Ke8) 36. Kc2 $18 {[%emt 0:00:20] White is clearly winning.} Bxd4 {[%emt 0:00:26]} 37. Qc7+ {[%emt 0:00:13]} (37. Qxd6 Qxg2 38. Qc7+ Kf8 39. Qd6+ (39. Rh2 Bxe4+ 40. Nxe4 Qxe4+ $11) 39... Kf7 40. Qc7+ Kg8 41. Qd8+ (41. Qxc6 Nc4+) (41. Rh2 Bxe4+ 42. Nxe4 Qxe4+ $11) 41... Kf7 42. Qc7+ $11 (42. Rh7+ Bg7 $11)) (37. Rh7+ Bg7 $14) 37... Kf6 {[%emt 0:00:33]} 38. Qd8+ {[%emt 0:00:04]} Kg6 {[%emt 0:00:09]} 39. Qxg5+ {[%emt 0:00:01][%mdl 64] Remove Defender} ({Not} 39. Qxd6 Qxg2 40. Qxe6+ Bf6 41. Qg8+ (41. Qxc6 Nc4+ 42. Kd3 Ne5+ 43. Ke3 Nxc6 44. e5 Nxe5 45. Rb1 Qf3+ 46. Kd4 Nd7+ 47. Kc4 Qxc3+ 48. Kd5 Qd3+ 49. Kc6 Qxb1 50. Kxd7 Qb7+ 51. Kd6 Qb6+ 52. Kd5 Kf5 53. Kc4 Qb5#) 41... Bg7 42. Qe6+ Bf6 43. Qg8+ (43. Qxc6 {is a self mate.} Nc4+ 44. Kd3 Ne5+ 45. Ke3 Nxc6 46. Nd5 Qg3+ 47. Kd2 Bg5+ 48. Kd1 Nd4) 43... Bg7 44. Qe6+ Bf6 $11) 39... Kxg5 {[%emt 0:00:02]} 40. Kxd2 {[%emt 0:00:02]} e5 {[%emt 0:00:10]} 41. Ra1 {[%emt 0:00:06]} Bb7 {[%emt 0:00:02]} 42. Rb1 {[%emt 0:00:09]} Bc8 {[%emt 0:00:03]} 43. Nd5 {[%emt 0:00:07]} Kg4 {[%emt 0:00:15]} 44. Rb3 {[%emt 0:00:05]} Kh4 {[%emt 0:00:13] Prevents Bh3.} 45. Bf1 {[%emt 0:00:09]} a5 {[%emt 0:00:02]} 46. Ra3 {[%emt 0:00:04]} Bg4 {[%emt 0:00:06]} 47. Rxa5 {[%emt 0:00:04]} Bf3 {[%emt 0:00:02]} 48. Bd3 {[%emt 0:00:02] White used his chance.   Weighted Error Value: White=0.72/Black=0.37} 1-0

[Event "Romanian Team Rapid Women 2022"]
[Site "Sebes"]
[Date "2022.12.03"]
[Round "2.2"]
[White "Chicarosie, Ioana-Bianca"]
[Black "Cosma, Elena-Luminita"]
[Result "0-1"]
[ECO "D02"]
[WhiteElo "1815"]
[BlackElo "2244"]
[Annotator "TA"]
[PlyCount "152"]
[EventDate "2022.12.03"]
[EventType "rapid"]
[EventCountry "ROU"]
[SourceTitle "playchess.com"]
[Source "ChessBase"]
[SourceQuality "1"]
[TimeControl "900+10"]

{[%evp 9,152,-33,-3,-8,0,-7,-17,-44,-45,-42,-31,-33,-11,-34,-15,-43,-39,-37,-39,-55,-52,-120,-44,-43,-54,-32,-25,-67,-45,-66,-50,-98,-89,-98,-25,-115,0,0,0,-11,0,-16,-17,-15,0,0,0,0,0,0,0,0,0,0,0,-45,-34,-39,-37,-59,-59,-62,-76,-413,-110,-476,-267,-673,-652,-491,-295,-554,-440,-590,-581,-1369,-838,-838,-838,-821,-789,-828,-807,-742,-667,-793,-769,-1431,-1388,-1326,-1286,-6183,-137,-125,0,-987,-906,-868,-851,-2443,-2413,-3163,-1679,-933,-1708,-12810,-6038,-4798,-1002,-29979,-29980,-29980,-29981,-29981,-29982,-29982,-29983,-29982,-29983,-29983,-29982,-29982,0,-29983,-29984,-29984,-29985,-29985,-29986,-29986,-29987,-29989,-29990,-29991,-29990,-29991,-29987,-29987,-29988,-29993,-584,-29988,-29989,-29989,-29990]} 1. d4 {[%emt 0:00:02]} d5 {[%emt 0:00:01]} 2. Nf3 {[%emt 0:00:02]} Nf6 {[%emt 0:00:02]} 3. g3 {[%emt 0:00:00]} c5 {[%emt 0:00:12]} 4. Bg2 {[%emt 0:00:07]} cxd4 {[%emt 0:00:04]} 5. Nxd4 {[%emt 0:00:03]} h6 {[%emt 0:00:01]} (5... e5 $5 {[%cal Re5d4]} 6. Nb3 Be6 $11) 6. O-O {[%emt 0:00:06][%cal Oc2c4] D02: 1 d4 d5 2 Nf3 sidelines, including 2...Nf6 3 g3 and 2...Nf6 3 Bf4.} e5 {[%emt 0:00:03] Prevents c4.} 7. Nf3 {[%emt 0:00:25]} Nc6 {[%emt 0:00:02] Prevents c4.} 8. b3 {[%emt 0:00:25] The position is equal.} Be6 {[%emt 0:00:40]} 9. Bb2 {[%emt 0:00:07]} Qc7 {[%emt 0:00:15]} 10. Nbd2 {[%emt 0:15:33]} Rd8 {[%emt 0:15:30]} 11. e3 {[%emt 0:00:00]} Be7 {[%emt 0:00:00]} 12. Qe2 {[%emt 0:00:00]} O-O {[%emt 0:00:00]} 13. c4 {[%emt 0:00:00]} d4 {[%emt 0:00:00] [#]} 14. exd4 $146 {[%emt 0:00:00]} ({Predecessor:} 14. e4 Nd7 15. Rfd1 a5 16. Ne1 Nc5 17. Nd3 Nxd3 18. Qxd3 Nb4 19. Qb1 Qb6 20. Nf3 {½-½ (70) Baudys,O (2180)-Pick,S (2241) Czech Republic 1999}) 14... exd4 {[%emt 0:00:00]} 15. Rad1 {[%emt 0:00:00]} (15. a3 $15) 15... Bc5 {[%emt 0:00:00] Black is more active.} (15... Bf5 $17 {Strongly threatening ...Rfe8.} 16. Rfe1 Bb4) 16. Ne4 $15 {[%emt 0:00:00]} Nxe4 {[%emt 0:00:00]} 17. Qxe4 {[%emt 0:00:00][%cal Rb2d4]} Rfe8 {[%emt 0:00:00][%cal Oe6c4]} 18. Qd3 {[%emt 0:00:00]} (18. Nxd4 $2 Bxd4 19. Bxd4 Qd6 20. Bxg7 (20. c5 $2 Qd7 $19) 20... Qxd1 21. Bxh6 Qg4 22. Qxg4+ Bxg4 $19) (18. Bxd4 $2 Bxc4 $1 {[%mdl 512]} 19. Qg4 f5 20. Qxf5 Nxd4 $19) 18... Qd7 {[%emt 0:00:00]} 19. a3 {[%emt 0:00:00]} a5 {[%emt 0:00:00] Against b4} 20. Qd2 {[%emt 0:00:00]} (20. Rfe1 $15 {is more appropriate.}) 20... Qd6 $17 {[%emt 0:00:00]} 21. Qc1 {[%emt 0:00:00][%cal Ob3b4]} Qc7 {[%emt 0:00:00] Against b4} (21... Bg4 $17 22. Rfe1 Rxe1+ 23. Rxe1 d3) 22. Rfe1 {[%emt 0:00:00]} (22. b4 $11 {remains equal.} axb4 23. axb4 Nxb4 24. Nxd4) 22... Qc8 {[%emt 0:00:00]} (22... Qb6 $1 $17 23. Nd2 d3) 23. Ne5 $11 {[%emt 0:00:00] Inhibits d3.} Nxe5 {[%emt 0:00:00]} 24. Rxe5 {[%emt 0:00:00]} b6 {[%emt 0:00:00]} (24... d3 {seems wilder.} 25. Bf3 a4 26. b4 Be7) 25. Qd2 {[%emt 0:00:00]} a4 {[%emt 0:00:00]} (25... d3 {is more complex.} 26. Rde1 a4 27. b4 Bf8) 26. b4 {[%emt 0:00:57]} Bd6 {[%emt 0:00:00]} 27. Re4 {[%emt 0:00:06]} Bxc4 {[%emt 0:00:00]} 28. Rxd4 {[%emt 0:01:01]} (28. Bxd4 Rxe4 29. Bxe4 Be5 $1 $15) 28... Be7 {[%emt 0:00:00]} (28... Re2 $2 29. Qc3 Rxb2 30. Qxb2 $18) 29. Qc1 {[%emt 0:00:51]} b5 {[%emt 0:00:39]} 30. Rxd8 {[%emt 0:00:10]} Rxd8 {[%emt 0:00:03]} 31. Re1 {[%emt 0:00:09]} Bg5 {[%emt 0:00:41]} 32. f4 {[%emt 0:00:13]} Bf6 {[%emt 0:00:17]} 33. Bxf6 {[%emt 0:00:01]} gxf6 {[%emt 0:00:02]} 34. Be4 {[%emt 0:00:09] Inhibits Rd3.} Qd7 {[%emt 0:00:19] And now ...Re8 would win.} (34... Kg7 {simplifies} 35. Rd1 Be6 36. Re1 Qxc1 37. Rxc1 f5) 35. Qc3 {[%emt 0:00:18]} Kg7 {[%emt 0:00:47]} 36. Rc1 $2 {[%emt 0:00:13][%mdl 8192]} (36. Kf2 $17 {is tougher.}) 36... Qe6 $2 {[%emt 0:00:17]} (36... Re8 $19 37. Re1 Qa7+ 38. Kg2 Rxe4 39. Rxe4 Bd5) 37. Qf3 {[%emt 0:00:05][%mdl 8192]} (37. Re1 $17 {nothing else works.}) 37... f5 {[%emt 0:00:10]} (37... Rd2 $142 {White must now prevent ...Qh3.} 38. g4 Re2) 38. Bb7 $2 {[%emt 0:00:11]} (38. Bb1 Re8 39. Qc3+ Kg8 40. Qf3) 38... Rd3 $19 {[%emt 0:00:22]} 39. Qf2 {[%emt 0:00:07]} Re3 {[%emt 0:00:07] Against Re1} ({And not} 39... Rxa3 40. Qb2+ Kg6 41. Qxa3 $17) 40. Bf3 $2 {[%emt 0:00:03]} (40. Bc8 Qe7 41. Bxf5) 40... Kg6 {[%emt 0:00:13]} ({Don't take} 40... Rxa3 41. Qb2+ Qf6 42. Qxa3 $18) 41. Rd1 {[%emt 0:00:15][%cal Od1d6]} ({Much worse is} 41. Ra1 Qf6 42. Rc1 Rxa3 $19) 41... Rxa3 {[%emt 0:00:32]} 42. h3 {[%emt 0:00:17]} Qe3 {[%emt 0:00:03] Prevents g4.} 43. Qxe3 {[%emt 0:00:05]} Rxe3 {[%emt 0:00:02][%mdl 4096] Endgame KRB-KRB} 44. Kf2 {[%emt 0:00:01]} Rb3 {[%emt 0:00:05][%cal Oa4a3] Hoping for ...a3!} 45. Rd6+ {[%emt 0:00:06]} Kg7 {[%emt 0:00:04]} 46. Ra6 {[%emt 0:00:15]} Rxb4 {[%emt 0:00:02]} 47. g4 {[%emt 0:00:09]} Rb2+ {[%emt 0:00:13]} 48. Kg3 {[%emt 0:00:01]} Rb3 {[%emt 0:00:01]} 49. Kf2 {[%emt 0:00:03]} a3 {[%emt 0:00:04] ...b4 is the strong threat.} 50. gxf5 {[%emt 0:00:08] [#]} Rb2+ $2 {[%emt 0:00:17]} (50... Rxf3+ $1 $19 {[%mdl 512] is more deadly.} 51. Kxf3 b4) 51. Kg3 $17 {[%emt 0:00:05]} Rb3 $2 {[%emt 0:00:06][%mdl 8192]} (51... Kh8 $17 52. Rxa3 Rb3 53. Rxb3 Bxb3) 52. Kf2 $1 $19 {[%emt 0:00:09] White is on the road to losing.} f6 {[%emt 0:00:19]} 53. Ra7+ {[%emt 0:00:31]} Kf8 {[%emt 0:00:02]} 54. h4 {[%emt 0:00:13]} b4 {[%emt 0:00:12]} 55. Be4 {[%emt 0:00:13] Prevents a2.} Rb2+ {[%emt 0:00:06]} 56. Ke3 {[%emt 0:00:06]} a2 {[%emt 0:00:07]} 57. Kd4 {[%emt 0:00:07]} Bf7 {[%emt 0:00:06] ( -> ...Rd2+)} 58. Bd3 {[%emt 0:00:15]} Rb1 {[%emt 0:00:16]} (58... b3 $142 59. Bc4 Rd2+ 60. Kc5 Rc2 61. Rxf7+ Ke8) 59. Rxa2 {[%emt 0:00:22]} Bxa2 {[%emt 0:00:03]} 60. Bxb1 {[%emt 0:00:01]} Bxb1 {[%emt 0:00:01]} 61. Kc4 {[%emt 0:00:00]} Bxf5 {[%emt 0:00:07]} 62. Kxb4 {[%emt 0:00:01] KB-KPP} Kf7 {[%emt 0:00:05]} 63. Kc5 {[%emt 0:00:02]} Ke6 {[%emt 0:00:11]} 64. Kd4 {[%emt 0:00:01]} Kd6 {[%emt 0:00:01]} 65. Kc4 {[%emt 0:00:06]} Ke6 {[%emt 0:00:09]} 66. Kd4 {[%emt 0:00:02]} Bb1 {[%emt 0:00:02]} 67. Ke3 {[%emt 0:00:16]} Kf5 {[%emt 0:00:01]} 68. Kf3 {[%emt 0:00:00]} Be4+ {[%emt 0:00:01]} 69. Kg3 {[%emt 0:00:07]} h5 {[%emt 0:00:01]} 70. Kh2 {[%emt 0:00:30]} Kxf4 {[%emt 0:00:02] KB-KP} 71. Kh3 {[%emt 0:00:29]} Bf5+ {[%emt 0:00:02]} 72. Kh2 {[%emt 0:00:06]} Kg4 {[%emt 0:03:00]} 73. Kg2 Kxh4 {[%emt 0:00:00]} 74. Kh2 {[%emt 0:00:01]} Be4 {[%emt 0:00:00]} 75. Kg1 {[%emt 0:00:03]} Kg3 {[%emt 0:00:00]} 76. Kf1 {[%emt 0:00:02]} h4 {[%emt 0:00:00] Weighted Error Value: White=1.09/Black=0.66} 0-1